bitfinex/quotes_SOLUSD_20240603
["timestamp","ask_amount","ask_price","bid_price","bid_amount"]
[1717433507269,2.2499,164.45,164.43,6.39]
[1717433507691,2.2499,164.45,164.42,6.39]
[1717433507987,23.7592,164.47,164.41,0.2]
[1717433508187,2.2501,164.44,164.42,6.39]
[1717433508897,2.2501,164.44,164.41,0.2]
[1717433509093,2.2502,164.43,164.41,0.2]
[1717433509289,2.2502,164.43,164.41,6.59]
[1717433509789,2.2501,164.44,164.41,0.2]
[1717433509986,2.2502,164.43,164.41,0.2]
[1717433511804,2.2501,164.44,164.41,0.2]
[1717433512368,2.2502,164.43,164.41,0.2]
[1717433519797,11.1311,164.46,164.41,0.2]
[1717433519798,2.2503,164.42,164.41,0.2]
[1717433521507,2.2499,164.45,164.41,8.8404]
[1717433521704,2.25,164.44,164.41,6.59]
[1717433521893,2.25,164.44,164.41,0.2]
[1717433522584,2.2502,164.43,164.41,0.2]
[1717433522774,6.39,164.46,164.41,0.2]
[1717433522775,2.2503,164.42,164.41,0.2]
[1717433524991,2.2502,164.43,164.41,0.2]
[1717433525396,2.2503,164.42,164.41,0.2]
[1717433525878,8.6403,164.42,164.41,0.2]
[1717433526083,19.1441,164.42,164.41,0.2]
[1717433526493,34.8964,164.42,164.41,0.2]
[1717433526696,96.5572,164.42,164.41,0.2]
[1717433529107,74.054,164.42,164.31,0.2]
[1717433529315,2.2514,164.35,164.31,6.59]
[1717433529481,2.2514,164.35,164.31,2.4518]
[1717433529694,6.39,164.35,164.31,0.2]
[1717433529919,2.2517,164.32,164.31,0.2]
[1717433530286,8.6417,164.32,164.31,0.2]
[1717433530838,2.2515,164.33,164.31,0.2]
[1717433531005,2.2512,164.36,164.31,6.59]
[1717433531189,2.2512,164.36,164.32,6.39]
[1717433531390,6.39,164.37,164.31,6.59]
[1717433531589,2.2513,164.35,164.31,0.2]
[1717433531893,2.2515,164.33,164.31,0.2]
[1717433532303,2.2517,164.32,164.31,0.2]
[1717433533511,8.6417,164.32,164.31,0.2]
[1717433536317,2.2517,164.32,164.31,0.2]
[1717433537825,8.6417,164.32,164.31,0.2]
[1717433541731,2.2517,164.32,164.31,0.2]
[1717433542334,9.005,164.36,164.31,0.2]
[1717433542335,2.2515,164.33,164.31,0.2]
[1717433542929,2.2517,164.32,164.31,0.2]
[1717433543231,2.2516,164.33,164.31,0.2]
[1717433543432,2.2517,164.32,164.31,0.2]
[1717433544006,8.6417,164.32,164.31,0.2]
[1717433545622,2.2517,164.32,164.31,0.2]
[1717433548734,8.6417,164.32,164.31,0.2]
[1717433548911,2.2517,164.32,164.31,0.2]
[1717433552823,2.2515,164.33,164.31,0.2]
[1717433553030,2.2517,164.32,164.31,0.2]
[1717433556856,8.6417,164.32,164.31,0.2]
[1717433557240,2.2517,164.32,164.31,0.2]
[1717433558267,8.6417,164.32,164.31,0.2]
[1717433559234,13.1451,164.32,164.31,0.2]
[1717433562268,34.355,164.32,164.21,0.2]
[1717433562433,2.2528,164.24,164.21,6.59]
[1717433562638,6.39,164.26,164.21,0.2]
[1717433563033,6.39,164.26,164.21,6.59]
[1717433563234,2.2527,164.25,164.21,0.2]
[1717433565662,2.2527,164.25,164.21,6.59]
[1717433566368,6.39,164.25,164.21,0.2]
[1717433566540,4.5047,164.28,164.21,0.2]
[1717433566745,2.2526,164.25,164.21,6.59]
[1717433567272,2.2526,164.25,164.22,6.39]
[1717433567974,2.2525,164.26,164.22,6.39]
[1717433568148,2.2525,164.26,164.24,6.39]
[1717433568348,2.2526,164.25,164.23,6.39]
[1717433568965,2.2526,164.25,164.22,6.6099]
[1717433569485,2.2526,164.25,164.23,6.39]
[1717433570467,2.2526,164.25,164.22,12.9999]
[1717433570880,2.2526,164.25,164.22,6.39]
[1717433571250,2.2526,164.25,164.21,0.2]
[1717433571454,2.2526,164.25,164.22,6.39]
[1717433571681,2.2528,164.24,164.21,0.2]
[1717433571989,2.2528,164.24,164.21,6.59]
[1717433572489,2.2528,164.24,164.21,0.2]
[1717433572943,2.2528,164.24,164.21,6.59]
[1717433573569,2.2528,164.24,164.22,6.39]
[1717433574151,2.2528,164.24,164.21,0.2]
[1717433574758,2.2528,164.24,164.21,6.59]
[1717433576274,2.2528,164.24,164.22,6.39]
[1717433576972,2.2528,164.24,164.21,0.2]
[1717433577272,2.2528,164.24,164.21,6.59]
[1717433577475,2.2528,164.24,164.21,0.2]
[1717433577772,2.2528,164.24,164.21,6.59]
[1717433579275,2.2528,164.24,164.21,0.2]
[1717433579456,2.2528,164.24,164.21,6.59]
[1717433581153,6.39,164.25,164.21,0.2]
[1717433581367,2.253,164.23,164.21,0.2]
[1717433581769,2.2528,164.24,164.21,6.59]
[1717433581974,2.2529,164.23,164.21,6.59]
[1717433582473,2.2528,164.24,164.21,6.59]
[1717433582866,2.253,164.22,164.21,0.2]
[1717433583463,2.2529,164.24,164.21,6.59]
[1717433583664,2.2529,164.24,164.21,0.2]
[1717433583863,2.2529,164.23,164.21,0.2]
[1717433585460,2.253,164.22,164.21,0.2]
[1717433586684,8.643,164.22,164.21,0.2]
[1717433587181,2.253,164.22,164.21,0.2]
[1717433591467,8.643,164.22,164.21,0.2]
[1717433591877,13.1491,164.22,164.21,0.2]
[1717433592190,19.9083,164.22,164.21,0.2]
[1717433592563,13.1491,164.22,164.21,0.2]
[1717433592756,6.7591,164.22,164.21,0.2]
[1717433593277,13.5183,164.22,164.21,0.2]
[1717433593468,71.8112,164.22,164.21,0.2]
[1717433594594,20.4212,164.22,164.21,0.2]
[1717433594775,26.8112,164.22,164.21,0.2]
[1717433595476,65.4212,164.22,164.21,0.2]
[1717433595675,71.8112,164.22,164.21,0.2]
[1717433596187,74.4335,164.22,164.21,0.2]
[1717433596559,80.8235,164.22,164.21,0.2]
[1717433596765,97.1271,164.22,164.21,0.2]
[1717433597079,68.2065,164.22,164.13,0.8018744]
[1717433597285,8.6441,164.14,164.13,0.8018744]
[1717433597465,2.2541,164.14,164.13,0.8018744]
[1717433598395,8.6441,164.14,164.13,0.8018744]
[1717433598689,2.4241,164.14,164.13,0.8018744]
[1717433598984,8.8141,164.14,164.13,0.8018744]
[1717433599381,13.3224,164.14,164.13,0.8018744]
[1717433599580,58.3224,164.14,164.13,0.8018744]
[1717433599781,80.43,164.14,164.13,0.8018744]
[1717433599976,87.1925,164.14,164.13,0.8018744]
[1717433600781,13.1648,164.14,164.13,0.8018744]
[1717433600968,13.3224,164.14,164.13,0.8018744]
[1717433602276,26.7025,164.14,164.13,0.8018744]
[1717433602584,80.7191,164.14,164.13,0.8018744]
[1717433603696,74.3291,164.14,164.13,0.8018744]
[1717433603879,80.7191,164.14,164.13,0.8018744]
[1717433604794,74.3291,164.14,164.13,0.8018744]
[1717433604979,67.8815,164.14,164.13,0.8018744]
[1717433605188,80.456,164.14,164.13,0.8018744]
[1717433605968,22.8815,164.14,164.13,0.8018744]
[1717433606187,20.2549,164.14,164.13,0.8018744]
[1717433606392,20.0849,164.14,164.13,0.8018744]
[1717433607703,13.6949,164.14,164.13,0.8018744]
[1717433607882,6.9324,164.14,164.13,0.8018744]
[1717433608088,20.0849,164.14,164.13,0.8018744]
[1717433608409,35.65,164.14,164.13,0.8018744]
[1717433608580,80.65,164.14,164.13,0.8018744]
[1717433610693,80.65,164.14,163.98,7.35310644]
[1717433610694,22.7827,164.13,163.98,7.35310644]
[1717433610878,2.2554,164.05,164.0,12.6859]
[1717433611202,2.2554,164.05,164.0,6.2959]
[1717433611203,6.39,164.05,164.0,6.2959]
[1717433611412,2.2556,164.04,164.0,6.2959]
[1717433611704,2.2554,164.05,164.0,14.9419]
[1717433611908,2.2553,164.06,164.01,6.39]
[1717433612205,8.6453,164.06,164.01,15.1185]
[1717433612417,2.2553,164.06,164.01,15.1185]
[1717433612705,2.2553,164.06,164.02,6.3234]
[1717433613083,2.2553,164.06,164.03,6.5903]
[1717433613387,9.0198,164.09,164.03,12.9803]
[1717433613388,2.2551,164.07,164.03,12.9803]
[1717433613786,2.2551,164.07,164.04,6.5903]
[1717433614029,2.2551,164.07,164.04,12.9803]
[1717433614603,2.2549,164.09,164.03,8.7254]
[1717433614903,9.0181,164.12,164.02,15.2131]
[1717433614904,2.2548,164.1,164.07,12.8599]
[1717433615093,2.2548,164.09,164.07,6.4699]
[1717433615477,2.2547,164.1,164.07,6.4699]
[1717433615878,2.2549,164.09,164.07,6.4699]
[1717433616979,2.2549,164.09,164.07,12.8599]
[1717433617182,2.2547,164.1,164.07,12.8599]
[1717433617804,17.6619,164.13,164.07,12.8599]
[1717433617980,2.2548,164.09,164.07,12.8599]
[1717433618709,2.2547,164.1,164.07,12.8599]
[1717433619573,2.2547,164.1,164.07,6.39]
[1717433619778,2.2545,164.11,164.08,12.5622]
[1717433620001,2.2545,164.12,164.09,12.5622]
[1717433620307,2.2543,164.13,164.09,12.5622]
[1717433620712,2.2544,164.12,164.09,12.5622]
[1717433620913,9.0147,164.18,164.09,12.5622]
[1717433621113,4.5078,164.16,164.11,6.39]
[1717433621426,2.2543,164.13,164.11,12.7383]
[1717433621651,13.522,164.18,164.11,6.3009]
[1717433621790,2.2539,164.16,164.13,6.39]
[1717433621990,2.2539,164.16,164.13,12.6909]
[1717433622497,2.254,164.15,164.13,12.6909]
[1717433622708,11.2669,164.2,164.14,6.39]
[1717433622906,2.2538,164.17,164.14,6.39]
[1717433623488,2.2539,164.16,164.14,6.39]
[1717433623683,2.2539,164.16,164.13,12.6909]
[1717433623918,2.254,164.15,164.13,12.6909]
[1717433624298,2.2541,164.14,164.1,6.6655]
[1717433624497,2.2541,164.14,164.1,13.0555]
[1717433624812,2.2541,164.14,164.1,6.39]
[1717433625017,2.2541,164.14,164.11,6.6655]
[1717433625313,2.254,164.15,164.11,6.6655]
[1717433625501,2.254,164.15,164.11,13.0555]
[1717433626017,2.2539,164.16,164.13,6.39]
[1717433626516,20.2766,164.23,164.13,8.8156]
[1717433626687,2.2537,164.18,164.14,6.0892]
[1717433627004,2.2536,164.18,164.14,12.4792]
[1717433629049,2.2541,164.15,164.11,6.39]
[1717433629235,2.2541,164.14,164.11,6.39]
[1717433629544,2.254,164.15,164.11,6.0955]
[1717433630747,2.2542,164.14,164.11,6.0955]
[1717433630953,2.254,164.16,164.11,12.4855]
[1717433631127,2.254,164.16,164.12,6.4132]
[1717433631325,2.254,164.16,164.12,12.8032]
[1717433631917,2.254,164.16,164.13,6.4132]
[1717433632124,2.2538,164.17,164.13,6.4132]
[1717433632321,2.2538,164.17,164.13,12.8032]
[1717433632540,2.2538,164.17,164.13,6.4132]
[1717433632728,2.2539,164.16,164.13,12.8032]
[1717433632932,2.254,164.15,164.13,12.8032]
[1717433633442,2.2539,164.16,164.13,12.8032]
[1717433634245,2.2538,164.17,164.14,6.3184]
[1717433634748,2.2538,164.17,164.14,12.7084]
[1717433635747,2.2535,164.19,164.14,2.254]
[1717433635931,2.2535,164.19,164.15,12.92]
[1717433636135,6.39,164.21,164.15,12.92]
[1717433636428,2.2536,164.18,164.15,12.92]
[1717433636821,2.2536,164.18,164.15,6.53]
[1717433637338,4.5064,164.21,164.15,6.53]
[1717433637649,2.2537,164.18,164.15,6.53]
[1717433637853,2.2537,164.17,164.15,6.53]
[1717433639536,2.2536,164.18,164.15,6.53]
[1717433639843,2.2537,164.17,164.15,6.53]
[1717433640540,2.2536,164.18,164.15,12.92]
[1717433641352,11.2643,164.24,164.16,6.39]
[1717433641548,2.2532,164.21,164.17,6.39]
[1717433642055,2.2533,164.2,164.17,6.39]
[1717433642352,2.2533,164.2,164.17,12.853]
[1717433642553,2.2532,164.21,164.17,12.853]
[1717433643547,2.2533,164.2,164.17,12.853]
[1717433644052,4.5057,164.24,164.17,12.853]
[1717433644053,2.2532,164.21,164.17,12.853]
[1717433645929,2.2535,164.19,164.15,6.39]
[1717433646133,2.2536,164.18,164.13,8.89]
[1717433646451,2.2536,164.18,164.14,6.39]
[1717433646687,6.39,164.18,164.1,6.0669]
[1717433646836,2.2541,164.15,164.1,14.7115]
[1717433647237,2.2537,164.18,164.13,8.3211]
[1717433647536,2.2537,164.18,164.14,6.39]
[1717433647736,2.2537,164.17,164.14,6.39]
[1717433648545,2.254,164.15,164.12,6.0811]
[1717433648953,2.2539,164.16,164.12,6.0811]
[1717433649338,2.2538,164.17,164.12,8.6444]
[1717433649538,2.2535,164.19,164.14,8.644]
[1717433649758,2.2535,164.19,164.15,6.39]
[1717433649954,2.2536,164.18,164.15,6.39]
[1717433650262,2.2537,164.17,164.14,12.5776]
[1717433650762,2.2537,164.17,164.13,6.39]
[1717433650953,4.5072,164.18,164.09,21.8915]
[1717433651152,6.39,164.16,164.11,6.39]
[1717433651375,2.2542,164.14,164.11,6.39]
[1717433652442,10.8976,164.17,164.11,6.39]
[1717433652643,0.17,164.16,164.06,15.57529141]
[1717433652862,2.2547,164.1,164.06,21.96529141]
[1717433653053,2.2547,164.1,164.06,6.4301]
[1717433653250,2.2548,164.09,164.06,12.8201]
[1717433653558,2.2548,164.09,164.06,6.4301]
[1717433654354,2.2547,164.1,164.04,2.2555]
[1717433654538,2.2547,164.1,164.05,6.39]
[1717433654744,6.39,164.11,164.03,2.2556]
[1717433654939,2.2551,164.07,164.04,6.39]
[1717433655173,2.2551,164.07,164.03,6.5217]
[1717433655372,2.2551,164.07,164.01,11.40109141]
[1717433655677,2.2553,164.06,164.0,27.30709141]
[1717433655973,2.2553,164.06,164.01,8.6459]
[1717433656474,2.2552,164.06,164.01,8.6459]
[1717433656846,8.6451,164.07,164.01,8.6459]
[1717433657071,8.6451,164.07,164.03,6.39]
[1717433657072,2.2551,164.07,164.03,6.39]
[1717433657254,2.255,164.08,164.05,6.39]
[1717433657566,10.8989,164.12,164.06,6.39]
[1717433657751,10.8989,164.12,164.04,2.2555]
[1717433657752,2.255,164.08,164.05,6.39]
[1717433658072,2.255,164.08,164.04,6.39]
[1717433658572,2.2551,164.07,164.03,6.39]
[1717433659671,2.255,164.08,164.04,6.39]
[1717433660351,2.2551,164.07,164.04,6.39]
[1717433660979,2.2551,164.07,164.03,6.39]
[1717433661352,2.2549,164.09,164.04,8.3574]
[1717433661655,2.2549,164.09,164.06,6.39]
[1717433662066,2.255,164.08,164.04,6.39]
[1717433663443,6.5239,164.07,164.0,9.14921085]
[1717433663655,6.5239,164.07,163.96,15.1202]
[1717433663656,2.2556,164.04,163.99,15.53921085]
[1717433663865,2.2556,164.04,163.99,6.39]
[1717433664054,2.2556,164.04,163.99,8.6462]
[1717433664574,8.6454,164.05,163.99,8.6462]
[1717433664755,2.2554,164.05,164.0,6.39]
[1717433665261,2.2554,164.05,164.0,2.256]
[1717433665453,2.2551,164.08,164.04,6.39]
[1717433665660,2.2551,164.08,164.05,6.39]
[1717433665862,2.2551,164.08,164.02,2.2557]
[1717433666057,2.2551,164.07,164.02,2.2557]
[1717433666372,2.2552,164.06,164.02,6.3531]
[1717433666876,2.2551,164.07,164.02,8.6088]
[1717433667758,2.255,164.08,164.02,8.6088]
[1717433668156,2.255,164.08,164.03,8.6087]
[1717433668355,2.2549,164.09,164.04,53.6086]
[1717433668556,2.2549,164.09,164.04,8.6086]
[1717433669591,2.255,164.08,164.04,6.3531]
[1717433671657,2.2549,164.09,164.05,45.0]
[1717433671989,2.2546,164.11,164.07,6.5687]
[1717433672469,2.2547,164.1,164.07,6.5687]
[1717433673781,6.1494,164.09,164.0,9.14921085]
[1717433674078,2.2556,164.03,163.98,2.2562]
[1717433674260,2.2555,164.04,163.98,6.1877]
[1717433674461,2.2555,164.04,163.98,8.444]
[1717433675088,2.2555,164.04,163.99,8.4439]
[1717433676077,2.2554,164.05,164.0,45.0]
[1717433676282,2.2554,164.05,164.0,47.256]
[1717433677190,2.2554,164.05,163.97,0.8018744]
[1717433677191,4.5114,164.03,163.97,0.8018744]
[1717433677482,2.2561,164.0,163.97,0.8018744]
[1717433678256,2.2563,163.99,163.97,0.8018744]
[1717433679283,2.2563,163.98,163.97,0.8018744]
[1717433679468,4.5118,164.02,163.97,0.8018744]
[1717433679879,2.2562,163.99,163.97,0.8018744]
[1717433681565,2.2563,163.98,163.97,0.8018744]
[1717433681782,2.2562,163.99,163.97,0.8018744]
[1717433682191,2.2563,163.98,163.97,0.8018744]
[1717433682598,2.2562,163.99,163.97,0.8018744]
[1717433683072,2.2563,163.98,163.97,0.8018744]
[1717433684662,2.2562,163.99,163.97,0.8018744]
[1717433684859,2.2563,163.98,163.97,0.8018744]
[1717433685468,2.2562,163.99,163.97,0.8018744]
[1717433685660,2.2563,163.99,163.97,0.8018744]
[1717433685862,11.2793,164.02,163.97,0.8018744]
[1717433685863,2.2563,163.98,163.97,0.8018744]
[1717433691487,8.6164,163.98,163.97,0.8018744]
[1717433691703,45.5829,163.98,163.97,0.8018744]
[1717433691870,52.0229,163.98,163.97,0.8018744]
[1717433692570,97.0229,163.98,163.97,0.8018744]
[1717433693878,90.5829,163.98,163.97,0.8018744]
[1717433700171,74.2636,163.98,163.97,0.8018744]
[1717433700373,22.5635,163.98,163.97,0.8018744]
[1717433700585,28.686,163.98,163.97,0.8018744]
[1717433701680,74.026,163.98,163.97,0.8018744]
[1717433702590,29.026,163.98,163.97,0.8018744]
[1717433703403,22.9035,163.98,163.97,0.8018744]
[1717433703708,22.5635,163.98,163.97,0.8018744]
[1717433704706,13.5381,163.98,163.97,0.8018744]
[1717433704877,22.5635,163.98,163.97,0.8018744]
[1717433706087,13.5381,163.98,163.97,0.8018744]
[1717433706726,2.2563,163.98,163.97,0.8018744]
[1717433707404,2.2562,163.99,163.97,0.8018744]
[1717433707710,9.0226,164.04,163.97,7.1492744]
[1717433707711,2.256,164.0,163.97,7.1492744]
[1717433707896,13.5337,164.04,163.97,7.1492744]
[1717433707897,4.5117,164.02,163.97,7.1492744]
[1717433708083,2.2563,163.99,163.97,7.1492744]
[1717433709223,2.2562,163.99,163.97,7.1492744]
[1717433709501,4.5114,164.03,163.97,7.1492744]
[1717433709502,2.2561,164.0,163.97,7.1492744]
[1717433710304,2.2559,164.01,163.98,6.3474]
[1717433710517,4.5103,164.07,163.99,6.3474]
[1717433710685,2.2557,164.03,164.0,6.3474]
[1717433711015,2.2554,164.05,164.0,18.4734]
[1717433711326,2.2555,164.04,164.02,6.3991]
[1717433711687,2.2554,164.05,164.02,6.6424]
[1717433711891,2.2554,164.05,164.03,6.6424]
[1717433712089,2.2555,164.04,163.99,47.2561]
[1717433712392,2.2555,164.04,164.0,6.6424]
[1717433712895,19.31,164.06,163.95,6.6424]
[1717433713196,19.31,164.06,163.91,6.4556]
[1717433713197,6.769,163.98,163.91,6.4556]
[1717433713888,2.2563,163.98,163.91,6.4556]
[1717433714388,2.2563,163.98,163.91,8.7128]
[1717433714589,2.2563,163.98,163.91,6.4556]
[1717433714814,6.769,163.98,163.91,6.4556]
[1717433716337,28.8465,163.98,163.87,262.1453]
[1717433716622,29.0165,163.98,163.88,2.2577]
[1717433716921,22.5635,163.98,163.87,259.8876]
[1717433717123,13.5381,163.98,163.9,2.2574]
[1717433717626,6.769,163.98,163.91,2.2573]
[1717433717807,2.2563,163.98,163.91,2.2573]
[1717433718389,2.2563,163.98,163.88,19.31]
[1717433718595,2.2563,163.98,163.93,2.2569]
[1717433718997,2.2562,163.99,163.94,2.2568]
[1717433719424,2.2562,163.99,163.94,8.5926]
[1717433719627,15.7892,164.04,163.91,15.3148]
[1717433719628,2.2561,164.0,163.97,6.8449744]
[1717433720508,2.2561,164.0,163.98,6.3562]
[1717433720901,11.2779,164.04,163.98,6.3562]
[1717433721114,2.256,164.01,163.98,6.3562]
[1717433721403,19.31,164.07,163.98,6.3562]
[1717433721404,2.2558,164.02,163.98,6.3562]
[1717433721631,2.2558,164.02,163.98,6.0836]
[1717433721926,2.2563,163.98,163.97,0.8018744]
[1717433723296,13.5381,163.98,163.97,0.8018744]
[1717433725540,6.769,163.98,163.97,0.8018744]
[1717433726447,2.2563,163.98,163.97,0.8018744]
[1717433729928,6.769,163.98,163.97,0.8018744]
[1717433730897,2.2563,163.98,163.97,0.8018744]
[1717433736714,6.769,163.98,163.97,0.8018744]
[1717433739234,2.2563,163.98,163.97,0.8018744]
[1717433742815,6.769,163.98,163.97,0.8018744]
[1717433743941,13.199,163.98,163.97,0.8018744]
[1717433744343,19.9681,163.98,163.97,0.8018744]
[1717433745136,28.9935,163.98,163.97,0.8018744]
[1717433748740,35.9183,163.98,163.97,0.8018744]
[1717433750147,80.9183,163.98,163.97,0.8018744]
[1717433753455,74.4883,163.98,163.97,0.8018744]
[1717433753626,29.3335,163.98,163.97,0.8018744]
[1717433754645,29.1635,163.98,163.97,0.8018744]
[1717433755436,28.9935,163.98,163.97,0.8018744]
[1717433758629,29.1635,163.98,163.97,0.8018744]
[1717433759256,29.3335,163.98,163.97,0.8018744]
[1717433762458,6.939,163.98,163.97,0.8018744]
[1717433762652,28.9935,163.98,163.97,0.8018744]
[1717433765553,2.2576,163.89,163.88,6.3347]
[1717433765755,2.2575,163.9,163.86,24.9791]
[1717433765949,2.2575,163.9,163.87,12.7924]
[1717433766152,10.9442,163.93,163.88,6.3624]
[1717433766356,2.2571,163.93,163.89,6.3624]
[1717433766566,2.2571,163.93,163.9,6.3624]
[1717433766947,9.10185001,163.91,163.9,6.3624]
[1717433768148,9.10185001,163.92,163.9,22.1671]
[1717433768348,9.10185001,163.93,163.91,6.43]
[1717433768570,9.10185001,163.94,163.92,6.4269]
[1717433768949,11.35885001,163.93,163.92,6.4269]
[1717433769562,11.35885001,163.93,163.9,6.43]
[1717433769740,11.35885001,163.93,163.9,6.5456]
[1717433769941,9.10185001,163.92,163.9,6.5456]
[1717433770570,9.10085724,163.92,163.9,6.5456]
[1717433770779,9.10085724,163.92,163.9,12.9756]
[1717433771454,9.10085724,163.92,163.91,6.6372]
[1717433772069,2.2569,163.94,163.91,6.6372]
[1717433772070,9.10085724,163.93,163.91,6.6372]
[1717433772268,11.35785724,163.93,163.89,12.7439]
[1717433772566,11.35805724,163.92,163.89,6.3139]
[1717433773176,11.35805724,163.92,163.89,12.7439]
[1717433773355,9.10085724,163.92,163.89,12.7439]
[1717433775275,2.2572,163.92,163.89,12.7439]
[1717433776076,11.35795724,163.93,163.89,12.7439]
[1717433776270,9.10085724,163.93,163.9,2.2574]
[1717433776577,9.10085724,163.93,163.9,14.9241]
[1717433776773,9.10085724,163.93,163.91,6.43]
[1717433777281,9.10085724,163.93,163.91,12.9142]
[1717433777777,9.10085724,163.93,163.92,13.0833]
[1717433777965,9.10085724,163.93,163.92,15.3404]
[1717433778464,9.10085724,163.94,163.93,6.1619]
[1717433778778,9.10085724,163.94,163.93,12.5919]
[1717433780083,9.0963497,163.94,163.93,12.5919]
[1717433780261,9.0963497,163.94,163.93,6.43]
[1717433781796,9.09657702,163.94,163.93,6.43]
[1717433782166,9.09657702,163.94,163.93,12.7949]
[1717433782362,9.09657702,163.95,163.93,12.7949]
[1717433782555,9.09657702,163.95,163.94,6.43]
[1717433783771,9.09657702,163.95,163.94,12.7949]
[1717433783973,9.09657702,163.95,163.94,60.0518]
[1717433784675,9.09657702,163.95,163.94,76.6188]
[1717433784977,9.09657702,163.98,163.95,6.3649]
[1717433785179,9.09657702,163.98,163.97,12.7949]
[1717433785475,9.09657702,163.99,163.97,15.0514]
[1717433785982,9.09657702,163.99,163.98,15.0512]
[1717433786172,9.09657702,163.99,163.98,60.2212]
[1717433786368,2.2557,164.03,163.99,2.2562]
[1717433786369,9.09657702,164.0,163.99,2.2562]
[1717433786680,9.09657702,164.0,163.99,6.43]
[1717433786885,2.2559,164.01,163.99,6.43]
[1717433787276,9.0981095,164.0,163.99,6.43]
[1717433788995,9.0981095,164.0,163.99,51.43]
[1717433789165,9.0981095,164.01,163.99,51.43]
[1717433789367,9.0981095,164.01,164.0,6.43]
[1717433789991,9.0981095,164.01,164.0,12.9596]
[1717433790288,6.6319,164.19,164.0,92.2668]
[1717433790596,4.508,164.15,164.09,6.43]
[1717433790772,2.2545,164.12,164.09,6.43]
[1717433790964,10.938,164.15,164.09,6.43]
[1717433790965,2.2546,164.11,164.09,6.43]
[1717433791165,6.43,164.15,164.09,6.43]
[1717433791402,2.2543,164.13,164.1,6.43]
[1717433792092,2.2543,164.13,164.08,2.2549]
[1717433792902,4.5075,164.17,164.08,2.2549]
[1717433792903,2.2542,164.14,164.08,2.2549]
[1717433793096,2.2543,164.13,164.07,2.255]
[1717433793304,2.2544,164.12,164.07,2.255]
[1717433794808,2.2543,164.13,164.08,2.2549]
[1717433795784,2.2544,164.12,164.07,2.255]
[1717433795995,2.2544,164.12,164.07,8.3428]
[1717433796197,2.2546,164.11,164.06,47.4252]
[1717433796396,2.2546,164.11,164.06,47.2552]
[1717433796605,4.5082,164.15,164.08,2.2549]
[1717433796908,2.2544,164.12,164.07,2.255]
[1717433798405,2.2543,164.13,164.08,2.2549]
[1717433798710,2.2543,164.13,164.09,2.2548]
[1717433798884,4.5075,164.17,164.06,4.5103]
[1717433798885,2.2542,164.14,164.06,4.5103]
[1717433799210,2.2542,164.14,164.09,2.2547]
[1717433800010,2.254,164.15,164.1,8.7467]
[1717433800297,4.5072,164.18,164.11,45.0]
[1717433800678,2.2539,164.16,164.11,47.2545]
[1717433801481,2.254,164.15,164.11,45.0]
[1717433802394,2.2539,164.16,164.11,47.2544]
[1717433802787,2.2539,164.16,164.11,53.3055]
[1717433803188,2.2538,164.17,164.11,45.0]
[1717433803484,2.2538,164.17,164.12,8.4821]
[1717433803886,2.2539,164.16,164.13,6.0791]
[1717433804089,2.2539,164.16,164.14,45.0]
[1717433805786,2.2538,164.17,164.14,45.0]